[Event "*** SCC Grand Prix: Titled Tuesday Blitz"]
[Site "Chess.com"]
[Date "2020.09.29"]
[Round "1"]
[White "frederiksvane"]
[Black "DanielTitichoca"]
[Result "0-1"]
[WhiteElo "2687"]
[BlackElo "2379"]
[TimeControl "180+1"]
[EndTime "10:08:05 PDT"]
[Termination "DanielTitichoca won on time"]

1. e4 {[%clk 0:03:00.9]} 1... c5 {[%clk 0:02:58.4]} 2. Nf3 {[%clk 0:03:00.3]}
2... d6 {[%clk 0:02:58.7]} 3. Bb5+ {[%clk 0:03:00.3]} 3... Bd7 {[%clk
0:02:56.7]} 4. c4 {[%clk 0:03:00.2]} 4... Nf6 {[%clk 0:02:52.4]} 5. Nc3 {[%clk
0:03:00.2]} 5... Nc6 {[%clk 0:02:52.3]} 6. d4 {[%clk 0:02:59.8]} 6... cxd4
{[%clk 0:02:51]} 7. Nxd4 {[%clk 0:03:00.7]} 7... a6 {[%clk 0:02:51.1]} 8. Bxc6
{[%clk 0:03:00.5]} 8... bxc6 {[%clk 0:02:49.9]} 9. O-O {[%clk 0:02:59.4]} 9...
e5 {[%clk 0:02:49.4]} 10. Nb3 {[%clk 0:02:55.6]} 10... Be6 {[%clk 0:02:47.4]}
11. Qe2 {[%clk 0:02:41.9]} 11... Be7 {[%clk 0:02:46]} 12. Be3 {[%clk 0:02:41.3]}
12... O-O {[%clk 0:02:44.8]} 13. Rfd1 {[%clk 0:02:40.6]} 13... Qc7 {[%clk
0:02:42.3]} 14. Rac1 {[%clk 0:02:39.5]} 14... a5 {[%clk 0:02:38.8]} 15. Na4
{[%clk 0:02:35]} 15... Rfb8 {[%clk 0:02:24.2]} 16. c5 {[%clk 0:02:31.9]} 16...
Nxe4 {[%clk 0:02:08.3]} 17. cxd6 {[%clk 0:02:27.9]} 17... Nxd6 {[%clk
0:02:06.1]} 18. Nac5 {[%clk 0:02:11]} 18... Bd5 {[%clk 0:02:01.6]} 19. Na6
{[%clk 0:02:07.4]} 19... Rxa6 {[%clk 0:01:44.2]} 20. Qxa6 {[%clk 0:02:08.3]}
20... Qd7 {[%clk 0:01:40.4]} 21. Qe2 {[%clk 0:01:56.1]} 21... Qf5 {[%clk
0:01:35.3]} 22. Nxa5 {[%clk 0:01:48]} 22... Qg6 {[%clk 0:01:32.2]} 23. f3 {[%clk
0:01:44.4]} 23... Nf5 {[%clk 0:01:30.3]} 24. Bf2 {[%clk 0:01:38.7]} 24... Bg5
{[%clk 0:01:26.9]} 25. Rc2 {[%clk 0:01:15.1]} 25... Bf4 {[%clk 0:01:25.8]} 26.
Nc4 {[%clk 0:01:03.8]} 26... Qh5 {[%clk 0:01:00.8]} 27. h3 {[%clk 0:01:01.9]}
27... Nh4 {[%clk 0:00:55.5]} 28. Bxh4 {[%clk 0:00:45.3]} 28... Qxh4 {[%clk
0:00:54.8]} 29. Nxe5 {[%clk 0:00:22.8]} 29... Qg3 {[%clk 0:00:52.6]} 30. Ng4
{[%clk 0:00:20]} 30... h5 {[%clk 0:00:48.1]} 31. Nf2 {[%clk 0:00:20.1]} 31...
Qh2+ {[%clk 0:00:32.1]} 32. Kf1 {[%clk 0:00:20.4]} 32... Kf8 {[%clk 0:00:28.8]}
33. b3 {[%clk 0:00:20.7]} 33... Re8 {[%clk 0:00:27.8]} 34. Qd3 {[%clk
0:00:18.4]} 34... Bg3 {[%clk 0:00:17.1]} 35. Qf5 {[%clk 0:00:13.8]} 35... h4
{[%clk 0:00:10.6]} 36. Qg5 {[%clk 0:00:07.2]} 36... g6 {[%clk 0:00:05.4]} 37.
Qh6+ {[%clk 0:00:04.5]} 37... Kg8 {[%clk 0:00:05.7]} 38. Re2 {[%clk 0:00:04.8]}
38... Rxe2 {[%clk 0:00:04.6]} 39. Kxe2 {[%clk 0:00:05.7]} 39... Qxg2 {[%clk
0:00:05]} 40. Qe3 {[%clk 0:00:06.4]} 40... Bxf2 {[%clk 0:00:03.2]} 41. Qxf2
{[%clk 0:00:07.3]} 41... Qxh3 {[%clk 0:00:02.9]} 42. Rd4 {[%clk 0:00:04.5]}
42... Qe6+ {[%clk 0:00:03.4]} 43. Kd2 {[%clk 0:00:03.7]} 43... h3 {[%clk
0:00:03.2]} 44. Rh4 {[%clk 0:00:03.9]} 44... Qf6 {[%clk 0:00:03.8]} 45. Qd4
{[%clk 0:00:03.5]} 45... Qg5+ {[%clk 0:00:03.8]} 46. Kc2 {[%clk 0:00:02.2]}
46... Qg2+ {[%clk 0:00:04]} 47. Kc3 {[%clk 0:00:02.3]} 47... Qxf3+ {[%clk
0:00:02.6]} 48. Kb4 {[%clk 0:00:02.4]} 48... f6 {[%clk 0:00:02.8]} 49. Kc5
{[%clk 0:00:01.7]} 49... Qe2 {[%clk 0:00:02.1]} 0-1

[Event "*** SCC Grand Prix: Titled Tuesday Blitz"]
[Site "Chess.com"]
[Date "2020.09.29"]
[Round "1"]
[White "chigorin28"]
[Black "Sanan_Sjugirov"]
[Result "0-1"]
[WhiteElo "2422"]
[BlackElo "2851"]
[TimeControl "180+1"]
[EndTime "10:08:06 PDT"]
[Termination "Sanan_Sjugirov won on time"]

1. d4 {[%clk 0:03:00.9]} 1... Nf6 {[%clk 0:02:58.7]} 2. Nf3 {[%clk 0:03:00]}
2... g6 {[%clk 0:02:52.6]} 3. Bf4 {[%clk 0:02:59.1]} 3... Bg7 {[%clk 0:02:52.2]}
4. e3 {[%clk 0:02:59.4]} 4... d6 {[%clk 0:02:50.9]} 5. h3 {[%clk 0:02:50.2]}
5... c5 {[%clk 0:02:40.9]} 6. c3 {[%clk 0:02:49.9]} 6... Qb6 {[%clk 0:02:40]} 7.
Qc1 {[%clk 0:02:49.2]} 7... O-O {[%clk 0:02:36.4]} 8. Be2 {[%clk 0:02:49.2]}
8... Nc6 {[%clk 0:02:34]} 9. O-O {[%clk 0:02:48.7]} 9... Bf5 {[%clk 0:02:28.9]}
10. Nbd2 {[%clk 0:02:48.5]} 10... d5 {[%clk 0:02:09.9]} 11. Ne5 {[%clk 0:02:31]}
11... Rac8 {[%clk 0:02:06.3]} 12. Nxc6 {[%clk 0:02:10.6]} 12... Rxc6 {[%clk
0:02:00.9]} 13. Nf3 {[%clk 0:02:03.4]} 13... Rcc8 {[%clk 0:01:56.8]} 14. Ne5
{[%clk 0:02:00.4]} 14... Rfd8 {[%clk 0:01:50.5]} 15. Bd3 {[%clk 0:01:16.8]}
15... Bxd3 {[%clk 0:01:34.8]} 16. Nxd3 {[%clk 0:01:16]} 16... Ne4 {[%clk
0:01:18.8]} 17. Be5 {[%clk 0:01:04.2]} 17... c4 {[%clk 0:01:02.4]} 18. Bxg7
{[%clk 0:01:03.8]} 18... Kxg7 {[%clk 0:00:52.8]} 19. Ne5 {[%clk 0:00:59.1]}
19... Qe6 {[%clk 0:00:38.1]} 20. Qc2 {[%clk 0:00:39.6]} 20... Rb8 {[%clk
0:00:19.3]} 21. Rae1 {[%clk 0:00:38.7]} 21... b5 {[%clk 0:00:17.2]} 22. a3
{[%clk 0:00:39.1]} 22... a5 {[%clk 0:00:16.8]} 23. f3 {[%clk 0:00:39.6]} 23...
Ng3 {[%clk 0:00:15.3]} 24. Rf2 {[%clk 0:00:39.9]} 24... f6 {[%clk 0:00:06.3]}
25. Ng4 {[%clk 0:00:39.7]} 25... h5 {[%clk 0:00:05.2]} 26. Nh2 {[%clk
0:00:39.7]} 26... f5 {[%clk 0:00:04.3]} 27. Nf1 {[%clk 0:00:39]} 27... Nxf1
{[%clk 0:00:03.5]} 28. Rfxf1 {[%clk 0:00:39.4]} 28... b4 {[%clk 0:00:04]} 29.
axb4 {[%clk 0:00:39.1]} 29... axb4 {[%clk 0:00:04.9]} 30. e4 {[%clk 0:00:39.1]}
30... b3 {[%clk 0:00:02.9]} 31. Qb1 {[%clk 0:00:36.6]} 31... fxe4 {[%clk
0:00:02.6]} 32. fxe4 {[%clk 0:00:37.5]} 32... dxe4 {[%clk 0:00:01.8]} 33. Rxe4
{[%clk 0:00:37.6]} 33... Qd6 {[%clk 0:00:02]} 34. Rfe1 {[%clk 0:00:37.5]} 34...
Rb7 {[%clk 0:00:02.2]} 35. Qc1 {[%clk 0:00:37.3]} 35... Rf8 {[%clk 0:00:01.6]}
36. Qg5 {[%clk 0:00:35.3]} 36... Qf6 {[%clk 0:00:02.2]} 37. Qg3 {[%clk
0:00:33.3]} 37... Rf7 {[%clk 0:00:02.2]} 38. Re6 {[%clk 0:00:33.4]} 38... Qf5
{[%clk 0:00:02.5]} 39. R1e5 {[%clk 0:00:28.8]} 39... Qb1+ {[%clk 0:00:02.6]} 40.
Kh2 {[%clk 0:00:29]} 40... Ra7 {[%clk 0:00:02.8]} 41. Rg5 {[%clk 0:00:26.9]}
41... Rf6 {[%clk 0:00:02.9]} 42. Qe5 {[%clk 0:00:18.2]} 42... Kf7 {[%clk
0:00:02.9]} 43. Rxf6+ {[%clk 0:00:14.7]} 43... exf6 {[%clk 0:00:03.8]} 44. Qd5+
{[%clk 0:00:14.5]} 44... Kg7 {[%clk 0:00:04]} 45. Rg3 {[%clk 0:00:13.4]} 45...
Qxb2 {[%clk 0:00:03]} 46. Qe4 {[%clk 0:00:11.4]} 46... Qc2 {[%clk 0:00:03]} 47.
Rxg6+ {[%clk 0:00:10.6]} 47... Kf7 {[%clk 0:00:03.1]} 48. Qd5+ {[%clk
0:00:02.5]} 48... Kxg6 {[%clk 0:00:03]} 49. Qg8+ {[%clk 0:00:03.1]} 49... Rg7
{[%clk 0:00:02.2]} 50. Qe8+ {[%clk 0:00:03]} 50... Kh6 {[%clk 0:00:02.6]} 51.
Qh8+ {[%clk 0:00:01.4]} 51... Qh7 {[%clk 0:00:03]} 52. Qe8 {[%clk 0:00:01.4]}
52... Qg6 {[%clk 0:00:03.4]} 0-1

[Event "*** SCC Grand Prix: Titled Tuesday Blitz"]
[Site "Chess.com"]
[Date "2020.09.29"]
[Round "1"]
[White "ajdemipopushi"]
[Black "Witik"]
[Result "0-1"]
[WhiteElo "2345"]
[BlackElo "2672"]
[TimeControl "180+1"]
[EndTime "10:08:08 PDT"]
[Termination "Witik won on time"]

1. Nf3 {[%clk 0:02:59.5]} 1... d5 {[%clk 0:02:59.5]} 2. g3 {[%clk 0:02:59.7]}
2... c6 {[%clk 0:02:59.6]} 3. c4 {[%clk 0:02:59.8]} 3... Nf6 {[%clk 0:02:58.9]}
4. Bg2 {[%clk 0:02:59.3]} 4... Bg4 {[%clk 0:02:58.8]} 5. Ne5 {[%clk 0:02:58.6]}
5... Bh5 {[%clk 0:02:57.4]} 6. cxd5 {[%clk 0:02:58.5]} 6... cxd5 {[%clk
0:02:53.5]} 7. Qa4+ {[%clk 0:02:57.8]} 7... Nbd7 {[%clk 0:02:49.8]} 8. Nc3
{[%clk 0:02:55.7]} 8... e6 {[%clk 0:02:42.4]} 9. g4 {[%clk 0:02:55.6]} 9... Bg6
{[%clk 0:02:40.1]} 10. h4 {[%clk 0:02:55]} 10... h5 {[%clk 0:02:25.3]} 11. Nxg6
{[%clk 0:02:52.2]} 11... fxg6 {[%clk 0:02:25.3]} 12. g5 {[%clk 0:02:52.3]} 12...
Ng4 {[%clk 0:02:23.1]} 13. Qc2 {[%clk 0:02:40.4]} 13... Kf7 {[%clk 0:02:17.1]}
14. Nxd5 {[%clk 0:02:32.9]} 14... Rc8 {[%clk 0:02:12.2]} 15. Nc3 {[%clk
0:02:32.2]} 15... Nde5 {[%clk 0:02:03.2]} 16. Qe4 {[%clk 0:02:05.5]} 16... Bc5
{[%clk 0:02:00.8]} 17. O-O {[%clk 0:01:53.2]} 17... Rf8 {[%clk 0:01:52.9]} 18.
e3 {[%clk 0:01:50.9]} 18... Nd3 {[%clk 0:01:33.1]} 19. Bh3 {[%clk 0:01:03.6]}
19... Kg8 {[%clk 0:01:14.4]} 20. Bxg4 {[%clk 0:00:56.4]} 20... hxg4 {[%clk
0:01:14.3]} 21. Qxe6+ {[%clk 0:00:51.4]} 21... Kh7 {[%clk 0:01:14.2]} 22. Qxg4
{[%clk 0:00:51.4]} 22... Qd6 {[%clk 0:00:51.8]} 23. Ne4 {[%clk 0:00:46.6]} 23...
Qd5 {[%clk 0:00:51.9]} 24. h5 {[%clk 0:00:37.6]} 24... Ne5 {[%clk 0:00:49.7]}
25. hxg6+ {[%clk 0:00:32.8]} 25... Kxg6 {[%clk 0:00:49.6]} 26. Nc3 {[%clk
0:00:12.2]} 26... Nf3+ {[%clk 0:00:35.2]} 27. Kg2 {[%clk 0:00:12.3]} 27... Ne1+
{[%clk 0:00:16.6]} 28. Kg1 {[%clk 0:00:12]} 28... Nf3+ {[%clk 0:00:15]} 29. Kg2
{[%clk 0:00:12.5]} 29... Qd6 {[%clk 0:00:08.5]} 30. Rh1 {[%clk 0:00:09.8]} 30...
Nxg5 {[%clk 0:00:05]} 31. Qh5+ {[%clk 0:00:09.5]} 31... Kf6 {[%clk 0:00:04.7]}
32. Qxg5+ {[%clk 0:00:09.8]} 32... Kxg5 {[%clk 0:00:04.9]} 33. Ne4+ {[%clk
0:00:10.5]} 33... Kg6 {[%clk 0:00:05.8]} 34. Nxd6 {[%clk 0:00:10.9]} 34... Bxd6
{[%clk 0:00:06.7]} 35. d4 {[%clk 0:00:11.4]} 35... Rc2 {[%clk 0:00:06.8]} 36.
Rf1 {[%clk 0:00:10.9]} 36... Rfc8 {[%clk 0:00:06.7]} 37. Rb1 {[%clk 0:00:10.8]}
37... Kf5 {[%clk 0:00:06.7]} 38. a3 {[%clk 0:00:10.9]} 38... g5 {[%clk
0:00:06.7]} 39. b4 {[%clk 0:00:10.9]} 39... g4 {[%clk 0:00:07.1]} 40. Kg1 {[%clk
0:00:06.4]} 40... Rh8 {[%clk 0:00:06.1]} 41. Rb2 {[%clk 0:00:05.8]} 41... Rcc8
{[%clk 0:00:03.6]} 42. Bd2 {[%clk 0:00:05.4]} 42... Ke4 {[%clk 0:00:04]} 43. f3+
{[%clk 0:00:03.3]} 43... gxf3 {[%clk 0:00:03.7]} 44. Bc1 {[%clk 0:00:02.6]}
44... Rcg8+ {[%clk 0:00:04]} 45. Kf2 {[%clk 0:00:02.7]} 45... Rh2+ {[%clk
0:00:04.5]} 46. Ke1 {[%clk 0:00:02.7]} 46... Rxb2 {[%clk 0:00:04.2]} 47. Bxb2
{[%clk 0:00:02.5]} 47... Rg2 {[%clk 0:00:05.1]} 48. Bc1 {[%clk 0:00:02.2]} 48...
Bg3+ {[%clk 0:00:05.1]} 49. Kd1 {[%clk 0:00:02.1]} 49... Kd3 {[%clk 0:00:04.9]}
50. d5 {[%clk 0:00:01.4]} 50... f2 {[%clk 0:00:04.7]} 0-1

[Event "*** SCC Grand Prix: Titled Tuesday Blitz"]
[Site "Chess.com"]
[Date "2020.09.29"]
[Round "1"]
[White "elcandado"]
[Black "paulrusan"]
[Result "0-1"]
[WhiteElo "2559"]
[BlackElo "2271"]
[TimeControl "180+1"]
[EndTime "10:08:11 PDT"]
[Termination "paulrusan won by resignation"]

1. d4 {[%clk 0:02:26.9]} 1... Nf6 {[%clk 0:02:57.7]} 2. Bf4 {[%clk 0:02:26.8]}
2... g6 {[%clk 0:02:56.2]} 3. Nc3 {[%clk 0:02:25.8]} 3... d5 {[%clk 0:02:53.2]}
4. e3 {[%clk 0:02:25]} 4... Bg7 {[%clk 0:02:53.2]} 5. Nf3 {[%clk 0:02:24.4]}
5... O-O {[%clk 0:02:52.7]} 6. h3 {[%clk 0:02:23.8]} 6... c6 {[%clk 0:02:51.5]}
7. Be2 {[%clk 0:02:22.7]} 7... b5 {[%clk 0:02:51]} 8. O-O {[%clk 0:02:21.9]}
8... a5 {[%clk 0:02:45.7]} 9. Ne5 {[%clk 0:02:17.1]} 9... a4 {[%clk 0:02:44]}
10. a3 {[%clk 0:02:16.2]} 10... Nfd7 {[%clk 0:02:41.1]} 11. Nd3 {[%clk
0:02:13.1]} 11... f6 {[%clk 0:02:39]} 12. Bh2 {[%clk 0:01:49]} 12... e5 {[%clk
0:02:38.4]} 13. Na2 {[%clk 0:01:49.5]} 13... Re8 {[%clk 0:02:32.9]} 14. Nab4
{[%clk 0:01:48.3]} 14... Bb7 {[%clk 0:02:32]} 15. c3 {[%clk 0:01:40.9]} 15...
Na6 {[%clk 0:02:29.8]} 16. Bg4 {[%clk 0:01:36.5]} 16... Nc7 {[%clk 0:02:15.2]}
17. Bxd7 {[%clk 0:01:25.2]} 17... Qxd7 {[%clk 0:02:15]} 18. Nc5 {[%clk
0:01:25.6]} 18... Qc8 {[%clk 0:02:15.2]} 19. Qg4 {[%clk 0:01:23.7]} 19... Ne6
{[%clk 0:02:09.1]} 20. Nxe6 {[%clk 0:01:13.4]} 20... Qxe6 {[%clk 0:02:07.5]} 21.
Qxe6+ {[%clk 0:01:11.5]} 21... Rxe6 {[%clk 0:02:07.5]} 22. Nd3 {[%clk
0:01:11.8]} 22... Rae8 {[%clk 0:02:02.5]} 23. Nc5 {[%clk 0:01:04.9]} 23... R6e7
{[%clk 0:02:02.5]} 24. Rfb1 {[%clk 0:01:00.8]} 24... Bc8 {[%clk 0:01:56.9]} 25.
Bg3 {[%clk 0:00:55.4]} 25... Ra7 {[%clk 0:01:54]} 26. Re1 {[%clk 0:00:42.4]}
26... Bf8 {[%clk 0:01:31]} 27. Nd3 {[%clk 0:00:35.7]} 27... e4 {[%clk
0:01:19.1]} 28. Nc5 {[%clk 0:00:29.3]} 28... Bxc5 {[%clk 0:01:13.3]} 29. dxc5
{[%clk 0:00:30.2]} 29... f5 {[%clk 0:01:08.6]} 30. Red1 {[%clk 0:00:30.4]} 30...
Rf7 {[%clk 0:01:06.6]} 31. Rd4 {[%clk 0:00:30.1]} 31... g5 {[%clk 0:01:05.4]}
32. Bd6 {[%clk 0:00:30.5]} 32... f4 {[%clk 0:01:01.9]} 33. Rb4 {[%clk
0:00:25.7]} 33... Kg7 {[%clk 0:00:58.9]} 34. b3 {[%clk 0:00:25.5]} 34... axb3
{[%clk 0:00:57.9]} 35. Rxb3 {[%clk 0:00:26.4]} 35... f3 {[%clk 0:00:54.8]} 36.
a4 {[%clk 0:00:24.2]} 36... bxa4 {[%clk 0:00:40.9]} 37. Rxa4 {[%clk 0:00:25.1]}
37... fxg2 {[%clk 0:00:41.1]} 38. Kxg2 {[%clk 0:00:24.6]} 38... Rf3 {[%clk
0:00:37.2]} 39. Ra7+ {[%clk 0:00:20.1]} 39... Kg6 {[%clk 0:00:35.1]} 40. Bg3
{[%clk 0:00:19.6]} 40... h5 {[%clk 0:00:32.8]} 41. h4 {[%clk 0:00:18.2]} 41...
gxh4 {[%clk 0:00:29.3]} 42. Bxh4 {[%clk 0:00:19.1]} 42... Bh3+ {[%clk
0:00:28.3]} 43. Kh2 {[%clk 0:00:16.7]} 43... Bg4 {[%clk 0:00:22.2]} 44. Kg2
{[%clk 0:00:09.8]} 44... Bh3+ {[%clk 0:00:20.6]} 45. Kg1 {[%clk 0:00:09.9]}
45... Rg8 {[%clk 0:00:19.2]} 46. Rbb7 {[%clk 0:00:09]} 46... Kf5+ {[%clk
0:00:18.2]} 47. Bg3 {[%clk 0:00:09.2]} 47... Rgxg3+ {[%clk 0:00:13.7]} 48. fxg3
{[%clk 0:00:08.5]} 48... Rxg3+ {[%clk 0:00:14]} 49. Kf2 {[%clk 0:00:08.9]} 49...
Rf3+ {[%clk 0:00:13.1]} 50. Ke2 {[%clk 0:00:08.6]} 50... Bg4 {[%clk 0:00:12.1]}
51. Ke1 {[%clk 0:00:07.6]} 51... Rxe3+ {[%clk 0:00:11.8]} 52. Kf2 {[%clk
0:00:07.6]} 52... Rxc3 {[%clk 0:00:10.9]} 53. Rf7+ {[%clk 0:00:07.5]} 53... Ke5
{[%clk 0:00:10.6]} 54. Rae7+ {[%clk 0:00:06.9]} 54... Kd4 {[%clk 0:00:10.7]} 55.
Rf6 {[%clk 0:00:07]} 55... Rxc5 {[%clk 0:00:10.6]} 56. Kg3 {[%clk 0:00:07.3]}
56... e3 {[%clk 0:00:09.4]} 57. Kf4 {[%clk 0:00:08.2]} 57... e2 {[%clk
0:00:09.5]} 58. Kg3 {[%clk 0:00:07.4]} 58... Rc1 {[%clk 0:00:09]} 59. Kf2 {[%clk
0:00:07.7]} 59... Rf1+ {[%clk 0:00:09]} 0-1

[Event "*** SCC Grand Prix: Titled Tuesday Blitz"]
[Site "Chess.com"]
[Date "2020.09.29"]
[Round "1"]
[White "artichaud"]
[Black "ehrenfeld"]
[Result "0-1"]
[WhiteElo "2202"]
[BlackElo "2533"]
[TimeControl "180+1"]
[EndTime "10:08:11 PDT"]
[Termination "ehrenfeld won by resignation"]

1. e4 {[%clk 0:02:59.1]} 1... e5 {[%clk 0:02:59.7]} 2. Nf3 {[%clk 0:02:59]} 2...
Nc6 {[%clk 0:02:59.6]} 3. Bb5 {[%clk 0:02:58.9]} 3... a6 {[%clk 0:02:59.2]} 4.
Bxc6 {[%clk 0:02:58.7]} 4... dxc6 {[%clk 0:02:58.7]} 5. d3 {[%clk 0:02:59.6]}
5... Qd6 {[%clk 0:02:52.5]} 6. Nbd2 {[%clk 0:02:58.5]} 6... f6 {[%clk
0:02:49.2]} 7. Nc4 {[%clk 0:02:57.2]} 7... Qe6 {[%clk 0:02:49.1]} 8. Bd2 {[%clk
0:02:47.4]} 8... Ne7 {[%clk 0:02:46.8]} 9. O-O {[%clk 0:02:41.9]} 9... c5 {[%clk
0:02:41.3]} 10. a3 {[%clk 0:02:37.1]} 10... Nc6 {[%clk 0:02:39.8]} 11. c3 {[%clk
0:02:34.1]} 11... Be7 {[%clk 0:02:37.2]} 12. b4 {[%clk 0:02:32]} 12... O-O
{[%clk 0:02:36.5]} 13. Qc2 {[%clk 0:02:27.1]} 13... Kh8 {[%clk 0:02:33]} 14. Be3
{[%clk 0:02:26.6]} 14... cxb4 {[%clk 0:02:26.1]} 15. axb4 {[%clk 0:02:27.5]}
15... Bd7 {[%clk 0:02:24.7]} 16. Nfd2 {[%clk 0:02:21.3]} 16... Rad8 {[%clk
0:02:16.1]} 17. Na5 {[%clk 0:02:17]} 17... Nxa5 {[%clk 0:02:14.4]} 18. bxa5
{[%clk 0:02:16.7]} 18... Bc8 {[%clk 0:02:13.1]} 19. d4 {[%clk 0:02:12.4]} 19...
f5 {[%clk 0:02:09]} 20. d5 {[%clk 0:01:57.5]} 20... Qg6 {[%clk 0:02:06.6]} 21.
c4 {[%clk 0:01:49.6]} 21... f4 {[%clk 0:02:03.1]} 22. Ba7 {[%clk 0:01:49.5]}
22... f3 {[%clk 0:02:00.9]} 23. g3 {[%clk 0:01:47.1]} 23... Qh5 {[%clk
0:01:55.3]} 24. Kh1 {[%clk 0:01:43.8]} 24... Rd6 {[%clk 0:01:47.3]} 25. Be3
{[%clk 0:01:34]} 25... g5 {[%clk 0:01:41.6]} 26. g4 {[%clk 0:01:22.1]} 26... Qh3
{[%clk 0:01:32.5]} 27. Rg1 {[%clk 0:01:19.8]} 27... Rh6 {[%clk 0:01:30.8]} 28.
Nf1 {[%clk 0:01:15.9]} 28... Bxg4 {[%clk 0:01:27.1]} 29. Rg3 {[%clk 0:01:13.1]}
29... Qh4 {[%clk 0:01:24.2]} 30. Qc3 {[%clk 0:01:08.2]} 30... Bf6 {[%clk
0:01:16.5]} 31. Bc5 {[%clk 0:00:46.2]} 31... Rf7 {[%clk 0:00:43.3]} 32. Rxf3
{[%clk 0:00:41]} 32... Bxf3+ {[%clk 0:00:43.1]} 33. Qxf3 {[%clk 0:00:40.8]}
33... Kg8 {[%clk 0:00:40.4]} 34. Qg2 {[%clk 0:00:40]} 34... g4 {[%clk
0:00:37.2]} 35. Rb1 {[%clk 0:00:38.9]} 35... Bg5 {[%clk 0:00:30.4]} 36. Rxb7
{[%clk 0:00:37.7]} 36... Rhf6 {[%clk 0:00:29.2]} 37. Rb8+ {[%clk 0:00:33.6]}
37... Kg7 {[%clk 0:00:29]} 38. Rb2 {[%clk 0:00:26.3]} 38... Bf4 {[%clk
0:00:27.6]} 39. Kg1 {[%clk 0:00:24.5]} 39... Rh6 {[%clk 0:00:23.7]} 40. Be3
{[%clk 0:00:21.8]} 40... Kf8 {[%clk 0:00:21.2]} 41. Ng3 {[%clk 0:00:20.8]} 41...
Bxg3 {[%clk 0:00:17.8]} 42. fxg3 {[%clk 0:00:18.2]} 42... Qh5 {[%clk 0:00:13.6]}
43. Bxh6+ {[%clk 0:00:15.2]} 43... Qxh6 {[%clk 0:00:13.8]} 44. Rf2 {[%clk
0:00:13.7]} 44... Qe3 {[%clk 0:00:13.1]} 45. Kf1 {[%clk 0:00:12.7]} 45... Qc1+
{[%clk 0:00:12.6]} 46. Ke2 {[%clk 0:00:12.1]} 46... Qxc4+ {[%clk 0:00:12.9]} 47.
Ke1 {[%clk 0:00:11.7]} 47... Qc1+ {[%clk 0:00:12.5]} 48. Ke2 {[%clk 0:00:11.7]}
48... Qc2+ {[%clk 0:00:12.5]} 49. Ke1 {[%clk 0:00:11.9]} 49... Qb1+ {[%clk
0:00:12.1]} 50. Ke2 {[%clk 0:00:12]} 50... Qa2+ {[%clk 0:00:12.2]} 51. Ke1
{[%clk 0:00:12.1]} 51... Qxa5+ {[%clk 0:00:12.2]} 52. Ke2 {[%clk 0:00:12.3]}
52... Qa2+ {[%clk 0:00:11.9]} 53. Ke1 {[%clk 0:00:12.3]} 53... Qxf2+ {[%clk
0:00:12.4]} 54. Qxf2 {[%clk 0:00:12.4]} 54... Rxf2 {[%clk 0:00:13]} 55. Kxf2
{[%clk 0:00:13.3]} 55... Ke7 {[%clk 0:00:11]} 56. Ke3 {[%clk 0:00:14.2]} 56...
Kd6 {[%clk 0:00:11.4]} 57. Kd3 {[%clk 0:00:14.4]} 57... Kc5 {[%clk 0:00:11.6]}
58. Kc3 {[%clk 0:00:13.9]} 58... a5 {[%clk 0:00:12]} 59. Kb3 {[%clk 0:00:13.5]}
59... Kd4 {[%clk 0:00:12]} 0-1